[Event "EYCC Open-U16 2019"]
[Site "Bratislava"]
[Date "2019.08.06"]
[Round "5.15"]
[White "Remizov, Yaroslav"]
[Black "Bin-Suhayl, Ieysaa"]
[Result "1-0"]
[ECO "B46"]
[WhiteElo "2357"]
[BlackElo "2084"]
[Annotator "NA"]
[PlyCount "111"]
[EventDate "2019.08.02"]
[EventType "swiss"]
[EventCountry "SVK"]
[SourceTitle "playchess.com"]
[Source "ChessBase"]
[SourceQuality "1"]
[TimeControl "40/5400+30:1800+30"]

1. e4 {[%emt 0:00:00]} c5 {[%emt 0:00:00]} 2. Nf3 {[%emt 0:00:00]} e6 {[%emt 0:00:00]} 3. d4 {[%emt 0:00:00]} cxd4 4. Nxd4 {[%emt 0:00:00]} Nc6 {[%emt 0:00:00]} 5. Nc3 {[%emt 0:01:08]} a6 {[%emt 0:00:00]} 6. Be2 {[%emt 0:01:39]} Qc7 {[%emt 0:00:00]} 7. O-O {[%emt 0:00:17]} Nf6 {[%emt 0:00:00]} 8. Be3 {[%emt 0:00:17]} Bb4 {[%emt 0:00:01]} 9. Na4 {[%emt 0:04:53]} Be7 {[%emt 0:00:08]} 10. Nxc6 {[%emt 0:01:05]} bxc6 {[%emt 0:00:05]} 11. Nb6 {[%emt 0:00:05]} Rb8 {[%emt 0:00:02]} 12. Nxc8 {[%emt 0:00:07]} Qxc8 {[%emt 0:00:03]} 13. Bd4 {[%emt 0:01:10]} c5 {[%emt 0:00:04]} 14. Be5 {[%emt 0:00:30]} Rb6 {[%emt 0:00:04]} 15. b3 {[%emt 0:01:35]} Nxe4 {[%emt 0:00:53]} 16. Bxg7 {[%emt 0:07:58]} Rg8 {[%emt 0:00:07]} 17. Be5 {[%emt 0:01:40]} Bd6 {[%emt 0:00:04]} 18. Bxd6 {[%emt 0:09:15]} Rxd6 {[%emt 0:00:05]} 19. Bd3 {[%emt 0:00:12]} Qc6 {[%emt 0:04:11]} 20. Qf3 {[%emt 0:01:14]} Nf6 {[%emt 0:00:09]} 21. Qxc6 {[%emt 0:13:40]} Rxc6 {[%emt 0:00:01]} 22. Rfe1 {[%emt 0:04:59]} Ke7 {[%emt 0:18:49]} 23. f3 {[%emt 0:05:06]} d5 {[%emt 0:01:47]} 24. Kf2 {[%emt 0:05:10]} Rd8 {[%emt 0:07:45]} 25. c4 {[%emt 0:08:06]} d4 {[%emt 0:00:28]} 26. g4 {[%emt 0:05:25]} h6 {[%emt 0:01:08]} 27. h4 {[%emt 0:08:01]} a5 {[%emt 0:02:30]} 28. g5 {[%emt 0:05:42]} hxg5 {[%emt 0:00:04]} 29. hxg5 {[%emt 0:00:03]} Nh5 {[%emt 0:01:48]} 30. Re4 {[%emt 0:03:10]} Rb6 {[%emt 0:05:04]} 31. Rh1 {[%emt 0:07:17]} Ng7 {[%emt 0:00:02]} 32. Rh7 {[%emt 0:00:39]} Rg8 {[%emt 0:00:42]} 33. Re5 {[%emt 0:01:03]} Kd6 {[%emt 0:01:46]} 34. f4 {[%emt 0:00:03]} Rbb8 {[%emt 0:02:01]} 35. Kf3 {[%emt 0:03:20]} Rbf8 {[%emt 0:00:45]} 36. Rh6 {[%emt 0:00:23]} Ne8 {[%emt 0:03:06]} 37. Rd5+ {[%emt 0:00:56]} Kc6 {[%emt 0:00:16]} 38. Be4 {[%emt 0:00:39]} Rh8 {[%emt 0:14:48]} 39. Rf5+ {[%emt 0:01:55]} Kd6 {[%emt 0:01:26]} 40. Rxf7 {[%emt 0:00:00]} Rxf7 {[%emt 0:00:00]} 41. Rxh8 {[%emt 0:02:26]} Ke7 {[%emt 0:04:15]} 42. Bg6 {[%emt 0:10:20]} Rf8 {[%emt 0:00:03]} 43. Rxf8 {[%emt 0:01:11]} Kxf8 {[%emt 0:00:04]} 44. Bxe8 {[%emt 0:00:04]} Kxe8 {[%emt 0:00:04]} 45. Ke4 {[%emt 0:00:36]} Kf7 {[%emt 0:00:03]} 46. a3 {[%emt 0:00:51]} Kg6 {[%emt 0:00:04]} 47. b4 {[%emt 0:00:39]} axb4 {[%emt 0:00:04]} 48. axb4 {[%emt 0:00:03]} cxb4 {[%emt 0:00:04]} 49. Kxd4 {[%emt 0:01:15]} e5+ {[%emt 0:00:04]} 50. fxe5 {[%emt 0:00:03]} Kxg5 {[%emt 0:00:07]} 51. c5 {[%emt 0:00:04]} Kf5 {[%emt 0:00:02]} 52. c6 {[%emt 0:00:12]} Ke6 {[%emt 0:00:04]} 53. Kc4 {[%emt 0:00:06]} Ke7 {[%emt 0:00:03]} 54. Kxb4 {[%emt 0:00:05]} Kd8 {[%emt 0:00:03]} 55. e6 {[%emt 0:00:05]} Ke7 {[%emt 0:00:02]} 56. c7 {[%emt 0:00:04]} 1-0

[Event "EYCC Open-U16 2019"]
[Site "Bratislava"]
[Date "2019.08.06"]
[Round "5.16"]
[White "Jazdanovs, Aleksandrs"]
[Black "Veiga, Jose Francisco R P N"]
[Result "0-1"]
[ECO "C88"]
[WhiteElo "2238"]
[BlackElo "2357"]
[Annotator "NA"]
[PlyCount "58"]
[EventDate "2019.08.02"]
[EventType "swiss"]
[EventCountry "SVK"]
[SourceTitle "playchess.com"]
[Source "ChessBase"]
[SourceQuality "1"]
[TimeControl "40/5400+30:1800+30"]

1. e4 {[%emt 0:02:32]} e5 {[%emt 0:00:24]} 2. Nf3 {[%emt 0:00:06]} Nc6 {[%emt 0:00:08]} 3. Bb5 {[%emt 0:00:13]} a6 {[%emt 0:00:08]} 4. Ba4 {[%emt 0:00:05]} Nf6 {[%emt 0:00:09]} 5. O-O {[%emt 0:00:06]} Be7 {[%emt 0:00:05]} 6. Re1 {[%emt 0:00:30]} b5 {[%emt 0:00:32]} 7. Bb3 {[%emt 0:00:07]} d6 {[%emt 0:00:12]} 8. a4 {[%emt 0:00:26]} Bd7 {[%emt 0:01:33]} 9. c3 {[%emt 0:02:27]} Na5 {[%emt 0:01:16]} 10. Bc2 {[%emt 0:00:35]} c5 {[%emt 0:00:11]} 11. d4 {[%emt 0:01:51]} Qb8 {[%emt 0:00:32]} 12. Bg5 {[%emt 0:07:24]} Be6 {[%emt 0:02:06]} 13. d5 {[%emt 0:05:18]} Bd7 {[%emt 0:05:16]} 14. axb5 {[%emt 0:00:42]} axb5 {[%emt 0:00:20]} 15. Bxf6 {[%emt 0:07:01]} Bxf6 {[%emt 0:00:34]} 16. b4 {[%emt 0:00:05]} cxb4 {[%emt 0:07:08]} 17. cxb4 {[%emt 0:00:07]} Nc4 {[%emt 0:00:04]} 18. Nbd2 {[%emt 0:02:15]} Nxd2 {[%emt 0:07:13]} 19. Qxd2 {[%emt 0:03:52]} O-O {[%emt 0:02:06]} 20. Bd3 {[%emt 0:04:26]} Qb7 {[%emt 0:05:06]} 21. Qb2 {[%emt 0:05:53]} Rfc8 {[%emt 0:05:37]} 22. Nd2 {[%emt 0:02:10]} Bd8 {[%emt 0:00:23]} 23. Rxa8 {[%emt 0:01:03]} Rxa8 {[%emt 0:00:39]} 24. Ra1 {[%emt 0:00:35]} Bb6 {[%emt 0:01:21]} 25. Nb3 {[%emt 0:00:04]} Ra4 {[%emt 0:04:24]} 26. Rxa4 {[%emt 0:06:42]} bxa4 {[%emt 0:00:09]} 27. Nd2 {[%emt 0:00:01]} Bd4 {[%emt 0:00:51]} 28. Qa2 {[%emt 0:00:07]} Qxb4 {[%emt 0:00:31]} 29. Qb1 {[%emt 0:00:43]} Bxf2+ {[%emt 0:05:04]} 0-1

[Event "EYCC Open-U16 2019"]
[Site "Bratislava"]
[Date "2019.08.06"]
[Round "5.17"]
[White "Boyer, Mahel"]
[Black "Koziorowicz, Michal"]
[Result "1-0"]
[ECO "B20"]
[WhiteElo "2295"]
[BlackElo "1985"]
[Annotator "NA"]
[PlyCount "163"]
[EventDate "2019.08.02"]
[EventType "swiss"]
[EventCountry "SVK"]
[SourceTitle "playchess.com"]
[Source "ChessBase"]
[SourceQuality "1"]
[TimeControl "40/5400+30:1800+30"]

1. e4 {[%emt 0:00:00]} c5 {[%emt 0:00:00]} 2. d3 {[%emt 0:00:00]} g6 {[%emt 0:00:00]} 3. g3 {[%emt 0:00:00]} Bg7 {[%emt 0:00:03]} 4. Bg2 {[%emt 0:00:00]} Nc6 {[%emt 0:00:19]} 5. f4 {[%emt 0:00:00]} d6 {[%emt 0:00:18]} 6. Nf3 {[%emt 0:00:00]} e6 {[%emt 0:00:16]} 7. O-O {[%emt 0:00:00]} Nge7 {[%emt 0:00:07]} 8. c3 {[%emt 0:00:00]} O-O {[%emt 0:00:11]} 9. Be3 {[%emt 0:00:00]} f5 {[%emt 0:00:43]} 10. Nbd2 {[%emt 0:00:00]} b6 {[%emt 0:00:52]} 11. Re1 {[%emt 0:00:01]} Bb7 {[%emt 0:01:32]} 12. Qc2 {[%emt 0:00:14]} Qd7 {[%emt 0:00:34]} 13. Bf2 {[%emt 0:00:03]} Rac8 {[%emt 0:04:07]} 14. Rad1 {[%emt 0:00:11]} h6 {[%emt 0:02:10]} 15. a4 {[%emt 0:00:03]} Kh7 {[%emt 0:02:53]} 16. Nc4 {[%emt 0:00:05]} d5 {[%emt 0:18:27]} 17. exd5 {[%emt 0:00:27]} exd5 {[%emt 0:00:51]} 18. Nce5 {[%emt 0:00:04]} Qd6 {[%emt 0:01:05]} 19. Nxc6 {[%emt 0:06:49]} Nxc6 {[%emt 0:01:42]} 20. d4 {[%emt 0:00:07]} c4 {[%emt 0:06:20]} 21. Re3 {[%emt 0:00:28]} Rce8 {[%emt 0:12:26]} 22. Ne5 {[%emt 0:00:25]} Re6 {[%emt 0:03:17]} 23. Rde1 {[%emt 0:01:43]} Rfe8 {[%emt 0:00:58]} 24. h4 {[%emt 0:03:17]} Bxe5 {[%emt 0:07:53]} 25. dxe5 {[%emt 0:22:03]} Qd7 {[%emt 0:00:12]} 26. Rd1 {[%emt 0:00:02]} Ne7 {[%emt 0:04:09]} 27. Re2 {[%emt 0:04:36]} h5 {[%emt 0:06:26]} 28. Red2 {[%emt 0:00:46]} Bc6 {[%emt 0:04:07]} 29. Ra1 {[%emt 0:00:29]} Ra8 {[%emt 0:03:55]} 30. Qd1 {[%emt 0:00:06]} Qb7 {[%emt 0:01:42]} 31. Bf3 {[%emt 0:00:21]} Kh6 {[%emt 0:01:18]} 32. a5 {[%emt 0:02:27]} bxa5 33. Bc5 {[%emt 0:02:18]} Rd8 {[%emt 0:04:46]} 34. Rxa5 {[%emt 0:00:43]} a6 {[%emt 0:01:19]} 35. Ra2 {[%emt 0:01:28]} Nc8 {[%emt 0:02:23]} 36. Rd4 {[%emt 0:00:27]} Na7 {[%emt 0:00:51]} 37. Kh2 {[%emt 0:03:25]} Nb5 {[%emt 0:02:12]} 38. Rxc4 {[%emt 0:01:47]} dxc4 {[%emt 0:00:38]} 39. Qxd8 {[%emt 0:00:03]} Kh7 {[%emt 0:01:00]} 40. Bd1 {[%emt 0:00:00]} Re8 {[%emt 0:00:00]} 41. Qd2 {[%emt 0:02:22]} Qa8 {[%emt 0:07:22]} 42. Ra1 {[%emt 0:03:17]} Rd8 {[%emt 0:01:19]} 43. Qf2 {[%emt 0:00:09]} Qc8 {[%emt 0:06:44]} 44. Be3 {[%emt 0:00:50]} Bb7 {[%emt 0:00:54]} 45. Bc2 {[%emt 0:02:35]} Qc6 {[%emt 0:01:08]} 46. Rg1 {[%emt 0:00:15]} Nc7 {[%emt 0:02:16]} 47. Qe2 {[%emt 0:00:53]} Kh6 {[%emt 0:00:54]} 48. Ra1 {[%emt 0:10:10]} Ba8 {[%emt 0:01:57]} 49. Qf1 {[%emt 0:01:21]} Nd5 {[%emt 0:03:08]} 50. Bc1 {[%emt 0:04:01]} Ne7 {[%emt 0:03:05]} 51. Ra4 {[%emt 0:01:04]} Rc8 {[%emt 0:00:17]} 52. Be3 {[%emt 0:00:43]} Qb7 {[%emt 0:01:08]} 53. Rb4 {[%emt 0:01:21]} Qd5 {[%emt 0:02:52]} 54. Rb6 {[%emt 0:00:29]} Rc6 {[%emt 0:00:24]} 55. Rb8 {[%emt 0:02:34]} Rc8 {[%emt 0:00:11]} 56. Rb6 {[%emt 0:00:27]} Rc6 {[%emt 0:00:09]} 57. Rb4 {[%emt 0:00:04]} Rc7 {[%emt 0:00:35]} 58. Ra4 {[%emt 0:01:16]} Qc6 {[%emt 0:01:03]} 59. Ra5 {[%emt 0:00:17]} Qb7 {[%emt 0:00:32]} 60. Bc1 {[%emt 0:00:56]} Qb6 {[%emt 0:00:46]} 61. Ra4 {[%emt 0:00:12]} Qc6 {[%emt 0:00:38]} 62. Be3 {[%emt 0:00:47]} Qb7 {[%emt 0:00:51]} 63. Rb4 {[%emt 0:00:50]} Qd5 {[%emt 0:00:12]} 64. Bc1 {[%emt 0:00:05]} Qc6 {[%emt 0:02:06]} 65. Ba4 {[%emt 0:07:12]} Qe4 {[%emt 0:02:11]} 66. Rb6 {[%emt 0:00:05]} Bb7 {[%emt 0:01:23]} 67. Rd6 {[%emt 0:02:37]} Nd5 {[%emt 0:01:44]} 68. Bd1 {[%emt 0:01:37]} Ne7 {[%emt 0:00:57]} 69. Be2 {[%emt 0:00:50]} Rc5 {[%emt 0:01:31]} 70. Rd4 {[%emt 0:00:55]} Qc6 {[%emt 0:00:02]} 71. Bxc4 {[%emt 0:04:08]} Ra5 {[%emt 0:00:38]} 72. Rd6 {[%emt 0:00:30]} Qc7 {[%emt 0:01:25]} 73. Be3 {[%emt 0:00:21]} Nc8 {[%emt 0:01:14]} 74. Rf6 {[%emt 0:04:15]} Ba8 {[%emt 0:00:38]} 75. Bf7 {[%emt 0:00:30]} Qb7 {[%emt 0:00:08]} 76. Bxg6 {[%emt 0:08:09]} Ra1 {[%emt 0:00:19]} 77. Bxf5+ {[%emt 0:00:11]} Kg7 {[%emt 0:00:02]} 78. Rg6+ {[%emt 0:00:06]} Kh8 {[%emt 0:02:30]} 79. Rh6+ {[%emt 0:00:14]} Kg8 {[%emt 0:00:01]} 80. Qc4+ {[%emt 0:00:10]} Qf7 {[%emt 0:00:39]} 81. Qxc8+ {[%emt 0:00:12]} Qf8 {[%emt 0:00:14]} 82. Rh8+ {[%emt 0:00:05]} 1-0

[Event "EYCC Open-U16 2019"]
[Site "Bratislava"]
[Date "2019.08.06"]
[Round "5.18"]
[White "Ivanovic, Marko"]
[Black "Tsoi, Dmitry"]
[Result "0-1"]
[ECO "A05"]
[WhiteElo "2267"]
[BlackElo "2314"]
[Annotator "NA"]
[PlyCount "82"]
[EventDate "2019.08.02"]
[EventType "swiss"]
[EventCountry "SVK"]
[SourceTitle "playchess.com"]
[Source "ChessBase"]
[SourceQuality "1"]
[TimeControl "40/5400+30:1800+30"]

1. Nf3 {[%emt 0:00:00]} Nf6 {[%emt 0:03:51]} 2. g3 {[%emt 0:00:00]} d6 {[%emt 0:01:48]} 3. d4 {[%emt 0:00:00]} Nbd7 {[%emt 0:00:59]} 4. c4 {[%emt 0:00:00]} e5 {[%emt 0:00:58]} 5. Nc3 {[%emt 0:00:00]} Be7 {[%emt 0:00:21]} 6. Bg2 {[%emt 0:00:00]} O-O {[%emt 0:00:05]} 7. O-O {[%emt 0:00:00]} c6 {[%emt 0:00:01]} 8. e4 {[%emt 0:00:58]} a5 {[%emt 0:00:24]} 9. h3 {[%emt 0:00:33]} Re8 {[%emt 0:00:20]} 10. Be3 {[%emt 0:00:18]} exd4 {[%emt 0:00:14]} 11. Nxd4 {[%emt 0:00:04]} Nc5 {[%emt 0:00:10]} 12. Qc2 {[%emt 0:00:04]} Qc7 {[%emt 0:01:15]} 13. Rfe1 {[%emt 0:00:14]} Bf8 {[%emt 0:01:53]} 14. Rad1 {[%emt 0:00:04]} Nfd7 {[%emt 0:01:38]} 15. b3 {[%emt 0:09:01]} Nb6 {[%emt 0:04:59]} 16. a3 {[%emt 0:14:57]} a4 {[%emt 0:07:09]} 17. b4 {[%emt 0:00:05]} Nxc4 {[%emt 0:00:21]} 18. bxc5 {[%emt 0:00:48]} dxc5 {[%emt 0:00:48]} 19. Nde2 {[%emt 0:50:06]} Nxe3 {[%emt 0:01:04]} 20. fxe3 {[%emt 0:00:07]} b5 {[%emt 0:00:34]} 21. Nf4 {[%emt 0:00:18]} Be6 {[%emt 0:00:50]} 22. Nxe6 {[%emt 0:06:49]} Rxe6 {[%emt 0:00:06]} 23. Ne2 {[%emt 0:00:07]} c4 {[%emt 0:01:25]} 24. Nd4 {[%emt 0:01:45]} Qxg3 {[%emt 0:05:06]} 25. Nxe6 {[%emt 0:00:06]} fxe6 {[%emt 0:00:04]} 26. Qd2 {[%emt 0:09:35]} Bxa3 {[%emt 0:08:37]} 27. Qd7 {[%emt 0:02:03]} Qe5 {[%emt 0:01:14]} 28. Rf1 {[%emt 0:00:40]} h6 {[%emt 0:00:07]} 29. Qxc6 {[%emt 0:01:36]} Rb8 {[%emt 0:00:28]} 30. Rd7 {[%emt 0:02:35]} Bf8 {[%emt 0:02:56]} 31. Ra7 {[%emt 0:01:59]} Kh7 {[%emt 0:08:04]} 32. Qd7 {[%emt 0:00:37]} Bc5 {[%emt 0:02:05]} 33. Ra6 {[%emt 0:00:20]} Bb6 {[%emt 0:01:22]} 34. Kh1 {[%emt 0:00:35]} c3 {[%emt 0:02:41]} 35. Qc6 {[%emt 0:00:13]} Bc7 {[%emt 0:00:59]} 36. Rf4 {[%emt 0:00:12]} Rd8 {[%emt 0:00:48]} 37. Ra7 {[%emt 0:00:24]} Rd1+ {[%emt 0:00:05]} 38. Bf1 {[%emt 0:00:58]} Bb8 {[%emt 0:09:40]} 39. Rb7 {[%emt 0:00:44]} Rxf1+ {[%emt 0:01:43]} 40. Kg2 {[%emt 0:00:00]} Rb1 {[%emt 0:00:00]} 41. h4 {[%emt 0:06:37]} c2 0-1

[Event "EYCC Open-U16 2019"]
[Site "Bratislava"]
[Date "2019.08.06"]
[Round "5.19"]
[White "Fecker, Noah"]
[Black "Kochavi, Ori"]
[Result "1/2-1/2"]
[ECO "B15"]
[WhiteElo "2313"]
[BlackElo "2153"]
[Annotator "NA"]
[PlyCount "38"]
[EventDate "2019.08.02"]
[EventType "swiss"]
[EventCountry "SVK"]
[SourceTitle "playchess.com"]
[Source "ChessBase"]
[SourceQuality "1"]
[TimeControl "40/5400+30:1800+30"]

1. e4 {[%emt 0:00:00]} c6 {[%emt 0:00:00]} 2. d4 {[%emt 0:00:00]} d5 {[%emt 0:00:00]} 3. Nc3 {[%emt 0:00:00]} dxe4 {[%emt 0:00:00]} 4. Nxe4 {[%emt 0:00:00]} Nf6 {[%emt 0:00:00]} 5. Nxf6+ {[%emt 0:00:09]} exf6 {[%emt 0:00:01]} 6. c3 {[%emt 0:00:07]} Bd6 {[%emt 0:00:04]} 7. Bd3 {[%emt 0:00:14]} O-O {[%emt 0:00:04]} 8. Ne2 {[%emt 0:00:45]} Re8 {[%emt 0:00:10]} 9. O-O {[%emt 0:00:14]} Na6 {[%emt 0:00:17]} 10. Bf4 {[%emt 0:14:38]} Nc7 {[%emt 0:03:15]} 11. Qd2 {[%emt 0:05:13]} Bg4 {[%emt 0:17:36]} 12. f3 {[%emt 0:10:47]} Bh5 {[%emt 0:04:15]} 13. Rfe1 {[%emt 0:13:25]} Bg6 {[%emt 0:02:00]} 14. Bxd6 {[%emt 0:01:08]} Qxd6 {[%emt 0:00:03]} 15. Nf4 {[%emt 0:00:25]} c5 {[%emt 0:16:21]} 16. dxc5 {[%emt 0:05:32]} Qxc5+ {[%emt 0:00:08]} 17. Qf2 {[%emt 0:00:44]} Qd6 {[%emt 0:12:36]} 18. Bxg6 {[%emt 0:04:42]} hxg6 {[%emt 0:14:45]} 19. Ne2 {[%emt 0:02:52]} Re5 {[%emt 0:00:08]} 1/2-1/2

[Event "EYCC Open-U16 2019"]
[Site "Bratislava"]
[Date "2019.08.06"]
[Round "5.20"]
[White "Geher, Koppany"]
[Black "Niedbala, Bartlomiej"]
[Result "1/2-1/2"]
[ECO "B08"]
[WhiteElo "2211"]
[BlackElo "2152"]
[Annotator "NA"]
[PlyCount "42"]
[EventDate "2019.08.02"]
[EventType "swiss"]
[EventCountry "SVK"]
[SourceTitle "playchess.com"]
[Source "ChessBase"]
[SourceQuality "1"]
[TimeControl "40/5400+30:1800+30"]

1. e4 {[%emt 0:00:00]} g6 {[%emt 0:00:00]} 2. d4 {[%emt 0:00:00]} Bg7 {[%emt 0:00:00]} 3. Nf3 {[%emt 0:00:02]} d6 {[%emt 0:00:00]} 4. Nc3 {[%emt 0:00:11]} Nf6 {[%emt 0:02:24]} 5. Be2 {[%emt 0:00:12]} O-O {[%emt 0:00:54]} 6. O-O {[%emt 0:00:08]} a6 {[%emt 0:02:46]} 7. a4 {[%emt 0:00:51]} Nc6 {[%emt 0:02:13]} 8. h3 {[%emt 0:00:49]} d5 {[%emt 0:05:11]} 9. e5 {[%emt 0:16:55]} Ne4 {[%emt 0:01:37]} 10. Bd3 {[%emt 0:00:19]} Nxc3 {[%emt 0:18:03]} 11. bxc3 {[%emt 0:00:01]} f6 {[%emt 0:04:23]} 12. exf6 {[%emt 0:01:06]} exf6 {[%emt 0:03:33]} 13. Re1 {[%emt 0:03:07]} Re8 {[%emt 0:03:46]} 14. Rxe8+ {[%emt 0:00:43]} Qxe8 {[%emt 0:00:04]} 15. Bf4 {[%emt 0:00:07]} Qf7 {[%emt 0:00:45]} 16. Rb1 {[%emt 0:05:18]} Bf8 {[%emt 0:03:06]} 17. Qd2 {[%emt 0:12:20]} Na5 {[%emt 0:01:23]} 18. Qe2 {[%emt 0:01:43]} c6 {[%emt 0:07:33]} 19. Nd2 {[%emt 0:14:27]} b5 {[%emt 0:06:48]} 20. axb5 {[%emt 0:10:25]} axb5 {[%emt 0:02:39]} 21. Ra1 {[%emt 0:01:24]} Ra7 {[%emt 0:02:29]} 1/2-1/2

[Event "EYCC Open-U16 2019"]
[Site "Bratislava"]
[Date "2019.08.06"]
[Round "5.21"]
[White "Marn, Jan"]
[Black "Cohen Revivo, Shoham"]
[Result "0-1"]
[ECO "D10"]
[WhiteElo "2215"]
[BlackElo "2254"]
[Annotator "NA"]
[PlyCount "64"]
[EventDate "2019.08.02"]
[EventType "swiss"]
[EventCountry "SVK"]
[SourceTitle "playchess.com"]
[Source "ChessBase"]
[SourceQuality "1"]
[TimeControl "40/5400+30:1800+30"]

1. d4 {[%emt 0:00:00]} d5 {[%emt 0:00:00]} 2. c4 {[%emt 0:00:26]} c6 {[%emt 0:00:06]} 3. cxd5 {[%emt 0:00:05]} cxd5 {[%emt 0:00:05]} 4. Nc3 {[%emt 0:00:09]} Nf6 {[%emt 0:00:09]} 5. Bf4 {[%emt 0:00:05]} Nc6 {[%emt 0:00:04]} 6. e3 {[%emt 0:00:11]} Bg4 {[%emt 0:00:13]} 7. f3 {[%emt 0:01:35]} Bf5 {[%emt 0:01:13]} 8. Qb3 {[%emt 0:03:13]} Na5 {[%emt 0:00:08]} 9. Qa4+ {[%emt 0:00:19]} Bd7 {[%emt 0:00:11]} 10. Qc2 {[%emt 0:00:11]} e6 {[%emt 0:02:03]} 11. Bd3 {[%emt 0:00:21]} Rc8 {[%emt 0:02:59]} 12. Nge2 {[%emt 0:03:33]} Be7 {[%emt 0:00:54]} 13. b3 {[%emt 0:12:40]} b5 {[%emt 0:02:55]} 14. Qb2 {[%emt 0:02:13]} b4 {[%emt 0:00:52]} 15. Nd1 {[%emt 0:00:24]} O-O {[%emt 0:00:22]} 16. g4 {[%emt 0:01:30]} Qb6 {[%emt 0:06:07]} 17. h4 {[%emt 0:09:39]} Bb5 {[%emt 0:00:49]} 18. Bb1 {[%emt 0:00:14]} Bd6 {[%emt 0:06:23]} 19. g5 {[%emt 0:15:22]} Nh5 {[%emt 0:00:55]} 20. Bxd6 {[%emt 0:00:40]} Qxd6 {[%emt 0:00:05]} 21. f4 {[%emt 0:00:03]} g6 {[%emt 0:01:09]} 22. Rh3 {[%emt 0:04:25]} Nc6 {[%emt 0:06:21]} 23. Nf2 {[%emt 0:06:50]} Bxe2 {[%emt 0:04:50]} 24. Kxe2 {[%emt 0:00:12]} Nxf4+ {[%emt 0:03:08]} 25. exf4 {[%emt 0:00:48]} Qxf4 {[%emt 0:00:07]} 26. Qd2 {[%emt 0:05:02]} Nxd4+ {[%emt 0:00:33]} 27. Kd1 {[%emt 0:00:07]} Rc1+ {[%emt 0:04:08]} 28. Kxc1 {[%emt 0:01:23]} Ne2+ {[%emt 0:01:13]} 29. Kd1 {[%emt 0:00:24]} Qxf2 {[%emt 0:00:33]} 30. Re3 {[%emt 0:11:56]} Qg1+ {[%emt 0:01:41]} 31. Kc2 {[%emt 0:00:17]} Nc3 {[%emt 0:03:41]} 32. Kb2 {[%emt 0:00:25]} Nd1+ {[%emt 0:00:21]} 0-1

[Event "EYCC Open-U16 2019"]
[Site "Bratislava"]
[Date "2019.08.06"]
[Round "5.22"]
[White "Vorisek, Jakub"]
[Black "Bacrot, Alexandre"]
[Result "1-0"]
[ECO "C05"]
[WhiteElo "2071"]
[BlackElo "2265"]
[Annotator "NA"]
[PlyCount "49"]
[EventDate "2019.08.02"]
[EventType "swiss"]
[EventCountry "SVK"]
[SourceTitle "playchess.com"]
[Source "ChessBase"]
[SourceQuality "1"]
[TimeControl "40/5400+30:1800+30"]

1. e4 {[%emt 0:00:00]} e6 {[%emt 0:00:44]} 2. d4 {[%emt 0:01:07]} d5 {[%emt 0:00:09]} 3. Nd2 {[%emt 0:04:59]} Nf6 {[%emt 0:00:15]} 4. e5 {[%emt 0:00:20]} Nfd7 {[%emt 0:00:07]} 5. c3 {[%emt 0:00:28]} c5 {[%emt 0:00:05]} 6. Bd3 {[%emt 0:00:18]} Nc6 {[%emt 0:00:06]} 7. Ne2 {[%emt 0:00:34]} Qb6 {[%emt 0:09:48]} 8. Nf3 {[%emt 0:02:06]} h6 {[%emt 0:03:40]} 9. O-O {[%emt 0:08:19]} g5 {[%emt 0:00:12]} 10. h3 {[%emt 0:12:00]} Rg8 {[%emt 0:01:10]} 11. b3 {[%emt 0:12:02]} a5 {[%emt 0:08:53]} 12. Be3 {[%emt 0:12:59]} cxd4 {[%emt 0:09:40]} 13. cxd4 {[%emt 0:03:59]} Ba3 {[%emt 0:01:47]} 14. Nc3 {[%emt 0:04:14]} Be7 {[%emt 0:02:45]} 15. a4 {[%emt 0:02:45]} Na7 {[%emt 0:01:46]} 16. Nh2 {[%emt 0:11:41]} Bb4 {[%emt 0:07:01]} 17. Nb5 {[%emt 0:02:53]} Nxb5 {[%emt 0:01:59]} 18. Bxb5 {[%emt 0:00:06]} Ke7 {[%emt 0:00:41]} 19. Qh5 {[%emt 0:02:12]} Nf8 {[%emt 0:02:35]} 20. Qxh6 {[%emt 0:01:33]} Bd7 {[%emt 0:00:05]} 21. Bxg5+ {[%emt 0:02:43]} Ke8 {[%emt 0:00:07]} 22. Ng4 {[%emt 0:04:44]} Be7 {[%emt 0:00:11]} 23. Bxe7 {[%emt 0:00:21]} Kxe7 {[%emt 0:01:17]} 24. Qf6+ {[%emt 0:00:11]} Ke8 {[%emt 0:01:17]} 25. Nh6 {[%emt 0:00:14]} 1-0

[Event "EYCC Open-U16 2019"]
[Site "Bratislava"]
[Date "2019.08.06"]
[Round "5.23"]
[White "Iliaguev, Daniel"]
[Black "Peyrer, Konstantin"]
[Result "1/2-1/2"]
[ECO "A05"]
[WhiteElo "2053"]
[BlackElo "2305"]
[Annotator "NA"]
[PlyCount "70"]
[EventDate "2019.08.02"]
[EventType "swiss"]
[EventCountry "SVK"]
[SourceTitle "playchess.com"]
[Source "ChessBase"]
[SourceQuality "1"]
[TimeControl "40/5400+30:1800+30"]

1. Nf3 {[%emt 0:00:00]} Nf6 {[%emt 0:00:00]} 2. g3 {[%emt 0:00:00]} g6 {[%emt 0:00:00]} 3. Bg2 {[%emt 0:00:00]} Bg7 {[%emt 0:00:00]} 4. O-O {[%emt 0:00:00]} O-O {[%emt 0:00:00]} 5. d4 {[%emt 0:00:08]} d6 {[%emt 0:00:00]} 6. b3 {[%emt 0:00:07]} c5 {[%emt 0:01:20]} 7. Bb2 {[%emt 0:01:42]} Nc6 {[%emt 0:00:41]} 8. c4 {[%emt 0:14:02]} d5 {[%emt 0:08:03]} 9. Nbd2 {[%emt 0:01:42]} dxc4 {[%emt 0:16:47]} 10. Nxc4 {[%emt 0:00:40]} Be6 {[%emt 0:00:11]} 11. Rc1 {[%emt 0:04:34]} Ne4 {[%emt 0:13:32]} 12. Nfe5 {[%emt 0:21:13]} Nxe5 {[%emt 0:00:39]} 13. dxe5 {[%emt 0:00:07]} Bxc4 {[%emt 0:01:41]} 14. Bxe4 {[%emt 0:04:11]} Ba6 {[%emt 0:01:21]} 15. Rxc5 {[%emt 0:06:11]} Qb6 {[%emt 0:01:19]} 16. Rc2 {[%emt 0:01:15]} Rfd8 {[%emt 0:07:49]} 17. Qc1 {[%emt 0:08:10]} Qe6 {[%emt 0:03:25]} 18. Qf4 {[%emt 0:05:33]} Rac8 {[%emt 0:02:33]} 19. Rxc8 {[%emt 0:05:24]} Rxc8 {[%emt 0:00:43]} 20. Qf3 {[%emt 0:03:16]} Qb6 {[%emt 0:01:29]} 21. Rd1 {[%emt 0:01:43]} Rd8 {[%emt 0:03:19]} 22. Rxd8+ {[%emt 0:00:16]} Qxd8 {[%emt 0:00:07]} 23. Bd3 {[%emt 0:00:02]} Qa5 {[%emt 0:00:21]} 24. Bxa6 {[%emt 0:01:41]} Qxa6 {[%emt 0:00:12]} 25. a4 {[%emt 0:01:30]} e6 {[%emt 0:05:31]} 26. Qd3 {[%emt 0:02:13]} Qa5 {[%emt 0:00:18]} 27. Qc3 {[%emt 0:01:42]} Qxc3 {[%emt 0:02:14]} 28. Bxc3 {[%emt 0:00:02]} Kf8 {[%emt 0:00:27]} 29. Kg2 {[%emt 0:01:39]} Ke8 {[%emt 0:00:24]} 30. Kf3 {[%emt 0:01:03]} Kd7 {[%emt 0:00:17]} 31. Ke4 {[%emt 0:00:08]} Bf8 {[%emt 0:00:09]} 32. Bd4 {[%emt 0:02:42]} b6 {[%emt 0:03:37]} 33. Kd3 {[%emt 0:01:40]} Kc6 {[%emt 0:01:08]} 34. e4 {[%emt 0:00:11]} Bb4 {[%emt 0:01:49]} 35. f4 {[%emt 0:02:23]} a6 {[%emt 0:00:39]} 1/2-1/2